bitfinex-derivatives/quotes_BNBF0:USTF0_20250524
["timestamp","ask_amount","ask_price","bid_price","bid_amount"]
[1748074843197,0.2981559,670.79,669.9,1.10485064]
[1748074844296,0.2981559,670.79,669.54,1.1111982]
[1748074845497,0.2981559,670.79,669.64,1.1111982]
[1748074846400,0.2981559,670.79,669.65,1.10082556]
[1748074847405,0.2981559,670.79,669.68,1.1111982]
[1748074848402,0.2981559,670.79,669.69,1.10082556]
[1748074849500,0.2981559,670.79,669.7,1.10082556]
[1748074850403,0.2981559,670.79,669.71,1.10082556]
[1748074851903,0.2981559,670.79,669.72,1.10082556]
[1748074853204,0.2981559,670.79,669.73,1.10082556]
[1748074854706,0.2981559,670.79,669.25,1.4815976]
[1748074854707,0.2981559,670.79,669.77,1.1111982]
[1748074855813,0.2981559,670.79,669.78,1.10082556]
[1748074857314,0.2981559,670.79,668.76,3.72252951]
[1748074857315,0.2981559,670.79,669.79,1.10082556]
[1748074858917,0.2981559,670.79,669.8,1.10082556]
[1748074860716,0.2981559,670.79,669.81,1.10082556]
[1748074861714,0.2981559,670.79,669.82,1.10082556]
[1748074862917,0.2981559,670.79,669.83,1.10082556]
[1748074864223,0.2981559,670.79,669.84,1.10082556]
[1748074865623,0.2981559,670.79,669.89,1.1111982]
[1748074866623,0.2981559,670.79,669.9,1.10082556]
[1748074868426,0.2981559,670.79,669.97,1.1111982]
[1748074869627,0.2981559,670.79,669.98,1.10082556]
[1748074870730,0.2981559,670.79,669.99,1.10082556]
[1748074871730,0.2981559,670.79,670.0,1.10082556]
[1748074873133,0.2981559,670.79,670.01,1.10082556]
[1748074874534,0.2981559,670.79,670.02,1.10082556]
[1748074876132,0.2981559,670.79,670.03,1.10082556]
[1748074877029,0.2981559,670.79,670.04,1.10082556]
[1748074878134,0.2981559,670.79,670.05,1.10082556]
[1748074879435,0.2981559,670.79,670.06,1.10082556]
[1748074880435,0.2981559,670.79,670.07,1.10082556]
[1748074881435,0.2981559,670.79,670.08,1.10082556]
[1748074882936,0.2981559,670.79,670.09,1.10082556]
[1748074883638,0.2981559,670.79,670.1,1.10082556]
[1748074885139,0.2981559,670.79,670.11,1.10082556]
[1748074886940,0.2981559,670.79,670.12,1.10082556]
[1748074888241,0.2981559,670.79,670.13,1.10082556]
[1748074889242,0.2981559,670.79,670.14,1.10082556]
[1748074891545,0.2981559,670.79,670.15,1.10082556]
[1748074892947,0.2981559,670.79,670.16,1.10082556]
[1748074894843,0.2981559,670.79,670.17,1.10082556]
[1748074895748,0.2981559,670.79,670.18,1.10082556]
[1748074897550,0.2981559,670.79,670.19,1.10082556]
[1748074898349,0.2981559,670.79,670.2,1.10082556]
[1748074899857,0.2981559,670.79,670.21,1.10082556]
[1748074901160,0.2981559,670.79,670.22,1.10082556]
[1748074902554,0.2981559,670.79,670.23,1.10082556]
[1748074903861,0.2981559,670.79,670.24,1.10082556]
[1748074905162,0.2981559,670.79,670.25,1.10082556]
[1748074906663,0.2981559,670.79,670.26,1.10082556]
[1748074908466,0.2981559,670.79,670.27,1.10082556]
[1748074909365,0.2981559,670.79,670.28,1.10082556]
[1748074911267,0.2981559,670.79,670.29,1.10082556]
[1748074912767,0.2981559,670.79,670.3,1.10082556]
[1748074913970,0.2981559,670.79,670.06,1.1111982]
[1748074915369,0.2981559,670.79,670.07,1.10082556]
[1748074917172,0.2981559,670.79,670.1,1.1111982]
[1748074918372,0.2981559,670.79,670.11,1.10082556]
[1748074919567,0.2981559,670.79,670.14,1.1111982]
[1748074920671,0.2981559,670.79,670.15,1.10082556]
[1748074921973,0.2981559,670.79,670.16,1.10082556]
[1748074923073,0.2981559,670.79,670.17,1.10082556]
[1748074924075,0.2981559,670.79,670.18,2.21202376]
[1748074925471,0.2981559,670.79,670.19,1.10082556]
[1748074927075,0.2981559,670.79,670.22,1.1111982]
[1748074928577,0.2981559,670.79,670.23,1.10082556]
[1748074929684,0.2981559,670.79,670.24,1.10082556]
[1748074930983,0.2981559,670.79,670.25,1.10082556]
[1748074931982,0.2981559,670.79,669.2,3.72252951]
[1748074931983,0.2981559,670.79,670.26,1.10082556]
[1748074932984,0.2981559,670.79,670.27,1.10082556]
[1748074934282,0.2981559,670.79,670.28,1.10082556]
[1748074935384,0.2981559,670.79,670.29,1.10082556]
[1748074937283,0.2981559,670.79,670.3,1.10082556]
[1748074938486,0.2981559,670.79,670.31,1.10082556]
[1748074939786,0.2981559,670.79,670.11,1.1111982]
[1748074939787,0.2981559,670.79,670.32,1.10082556]
[1748074941087,0.2981559,670.79,670.33,1.10082556]
[1748074942188,0.2981559,670.79,670.34,1.10082556]
[1748074942987,0.2981559,670.79,670.2,1.1111982]
[1748074942988,0.2981559,670.79,670.35,1.10082556]
[1748074944291,0.2981559,670.79,670.36,1.10082556]
[1748074945690,0.2981559,670.79,670.37,1.10082556]
[1748074946693,0.2981559,670.79,670.38,1.10082556]
[1748074947998,0.2981559,670.79,670.39,1.10082556]
[1748074949299,0.2981559,670.79,670.4,1.10082556]
[1748074950598,0.2981559,670.79,670.41,1.10082556]
[1748074951696,0.2981559,670.79,670.42,1.10082556]
[1748074952698,0.2981559,670.79,670.43,1.10082556]
[1748074953595,0.2981559,670.79,670.44,1.10082556]
[1748074954999,0.2981559,670.79,670.45,1.10082556]
[1748074956401,0.2981559,670.79,670.46,1.10082556]
[1748074957403,0.2981559,670.79,670.47,1.10082556]
[1748074958804,0.2981559,670.79,670.48,1.10082556]
[1748074959905,0.2981559,670.79,670.49,1.10082556]
[1748074961203,0.2981559,670.79,670.17,1.1111982]
[1748074962507,0.2981559,670.79,670.18,1.10601597]
[1748074963708,0.2981559,670.79,670.21,1.1111982]
[1748074964809,0.2981559,670.79,670.22,1.10601597]
[1748074966209,0.2981559,670.79,670.23,1.10601597]
[1748074967812,0.2981559,670.79,670.24,1.10601597]
[1748074968811,0.2981559,670.79,670.25,1.10601597]
[1748074969812,0.2981559,670.79,670.26,1.10601597]
[1748074971107,0.2981559,670.79,670.27,1.10601597]
[1748074972512,0.2981559,670.79,670.28,1.10601597]
[1748074974211,0.2981559,670.79,670.29,1.10601597]
[1748074975816,0.2981559,670.79,670.3,1.10601597]
[1748074977514,0.2981559,670.79,670.31,1.10601597]
[1748074978217,0.2981559,670.79,670.32,1.10601597]
[1748074980113,0.2981559,670.79,670.33,1.10601597]
[1748074981115,0.2981559,670.79,669.98,1.1111982]
[1748074982424,0.2981559,670.79,670.04,1.1111982]
[1748074983821,0.2981559,670.79,670.05,1.10632566]
[1748074985326,0.2981559,670.79,670.06,1.10632566]
[1748074986426,0.2981559,670.79,670.07,1.10632566]
[1748074988126,0.2981559,670.79,670.08,1.10632566]
[1748074989123,0.2981559,670.79,670.09,1.10632566]
[1748074990729,0.2981559,670.79,670.1,1.10632566]
[1748074992231,0.2981559,670.79,670.11,1.10632566]
[1748074993834,0.2981559,670.79,670.12,1.10632566]
[1748074995134,0.2981559,670.79,670.13,1.10632566]
[1748074996839,0.2981559,670.79,670.14,1.10632566]
[1748074997935,0.2981559,670.79,670.15,1.10632566]
[1748074998939,0.2981559,670.79,670.16,1.10632566]
[1748075000642,0.2981559,670.79,670.17,1.10632566]
[1748075002342,0.2981559,670.79,670.18,1.10632566]
[1748075003644,0.2981559,670.79,670.19,1.10632566]
[1748075005645,0.2981559,670.79,670.2,1.10632566]
[1748075006846,0.2981559,670.79,670.21,1.10632566]
[1748075008442,0.2981559,670.79,670.22,1.10632566]
[1748075009647,0.2981559,670.79,670.23,1.10632566]
[1748075011148,0.2981559,670.79,670.24,1.10632566]
[1748075012651,0.2981559,670.79,670.25,1.10632566]
[1748075013547,0.2981559,670.79,670.26,1.10632566]
[1748075015150,0.2981559,670.79,670.27,1.10632566]
[1748075017250,0.2981559,670.79,668.66,3.72252951]
[1748075017251,0.2981559,670.79,670.28,1.10632566]
[1748075018253,0.2981559,670.79,670.29,1.10632566]
[1748075019261,0.2981559,670.79,670.3,1.10632566]
[1748075020760,0.2981559,670.79,670.31,1.10632566]
[1748075022259,0.2981559,670.79,670.32,1.10632566]
[1748075023260,0.2981559,670.79,670.33,1.10632566]
[1748075024660,0.2981559,670.79,670.34,1.10632566]
[1748075025563,0.2981559,670.79,669.99,1.1111982]
[1748075026959,0.2981559,670.79,670.0,1.10340674]
[1748075028164,0.2981559,670.79,670.01,1.10340674]
[1748075029568,0.2981559,670.79,670.02,1.10340674]
[1748075030464,0.2981559,670.79,670.03,1.10340674]
[1748075032170,0.2981559,670.79,670.04,1.10340674]
[1748075033465,0.2981559,670.79,670.05,1.10340674]
[1748075034770,0.2981559,670.79,670.06,1.10340674]
[1748075035969,0.2981559,670.79,670.07,1.10340674]
[1748075037271,0.2981559,670.79,670.08,1.10340674]
[1748075038072,0.2981559,670.79,670.09,1.10340674]
[1748075039074,0.2981559,670.79,670.1,1.10340674]
[1748075040177,0.2981559,670.79,670.11,1.10340674]
[1748075041675,0.2981559,670.79,670.12,1.10340674]
[1748075043181,0.2981559,670.79,670.13,1.10340674]
[1748075044282,0.2981559,670.79,670.14,1.10340674]
[1748075045583,0.2981559,670.79,670.15,1.10340674]
[1748075046986,0.2981559,670.79,670.16,1.10340674]
[1748075047886,0.2981559,670.79,670.17,1.10340674]
[1748075049283,0.2981559,670.79,670.18,1.10340674]
[1748075050487,0.2981559,670.79,670.19,1.10340674]
[1748075051589,0.2981559,670.79,670.2,1.10340674]
[1748075052591,0.2981559,670.79,670.21,1.10340674]
[1748075053891,0.2981559,670.79,670.22,1.10340674]
[1748075055195,0.2981559,670.79,670.23,1.10340674]
[1748075057196,0.2981559,670.79,670.24,1.10340674]
[1748075058599,0.2981559,670.79,670.25,1.10340674]
[1748075060499,0.2981559,670.79,670.26,1.10340674]
[1748075061899,0.2981559,670.79,670.27,1.10340674]
[1748075063501,0.2981559,670.79,670.28,1.10340674]
[1748075064600,0.2981559,670.79,670.29,1.10340674]
[1748075065799,0.2981559,670.79,670.3,1.10340674]
[1748075067206,0.2981559,670.79,670.31,1.10340674]
[1748075068405,0.2981559,670.79,670.32,1.10340674]
[1748075069505,0.2981559,670.79,670.33,1.10340674]
[1748075070804,0.2981559,670.79,670.34,1.10340674]
[1748075072408,0.2981559,670.79,670.35,1.10340674]
[1748075074410,0.2981559,670.79,670.36,1.10340674]
[1748075075413,0.2981559,670.79,670.37,1.10340674]
[1748075076614,0.2981559,670.79,670.38,1.10340674]
[1748075077715,0.2981559,670.79,670.39,1.10340674]
[1748075079019,0.2981559,670.79,670.4,1.10340674]
[1748075080323,0.2981559,670.79,670.41,1.10340674]
[1748075081620,0.2981559,670.79,670.42,1.10340674]
[1748075083023,0.2981559,670.79,670.43,1.10340674]
[1748075084424,0.2981559,670.79,670.44,1.10340674]
[1748075085324,0.2981559,670.79,670.45,1.10340674]
[1748075086526,0.2981559,670.79,670.46,1.10340674]
[1748075088025,0.2981559,670.79,670.47,1.10340674]
[1748075089229,0.2981559,670.79,670.48,1.10340674]
[1748075090627,0.2981559,670.79,670.49,1.10340674]
[1748075091830,0.2981559,670.79,670.5,1.10340674]
[1748075093031,0.2981559,670.79,670.51,1.10340674]
[1748075094133,0.2981559,670.79,670.52,1.10340674]
[1748075095135,0.2981559,670.79,670.53,1.10340674]
[1748075096834,0.2981559,670.79,670.54,1.10340674]
[1748075098031,0.2981559,670.79,670.55,1.10340674]
[1748075100235,0.2981559,670.79,670.56,1.10340674]
[1748075100835,0.2981559,670.79,670.22,1.1111982]
[1748075102034,0.2981559,670.79,670.23,1.10296641]
[1748075103332,0.2981559,670.79,670.24,1.10296641]
[1748075104336,0.2981559,670.79,670.25,1.10296641]
[1748075105233,0.2981559,670.79,670.26,1.10296641]
[1748075106647,0.2981559,670.79,670.27,2.21416461]
[1748075107945,0.2981559,670.79,670.28,1.10296641]
[1748075109548,0.2981559,670.79,670.29,2.21416461]
[1748075111147,0.2981559,670.79,670.3,1.10296641]
[1748075112247,0.2981559,670.79,670.33,1.1111982]
[1748075113250,0.2981559,670.79,670.34,1.10296641]
[1748075114750,0.2981559,670.79,670.39,1.1111982]
[1748075115751,0.2981559,670.79,670.4,1.10296641]
[1748075117153,0.2981559,670.79,670.43,1.1111982]
[1748075117948,3.70132711,672.0,670.43,1.1111982]
[1748075118150,0.25932315,671.46,670.43,1.1111982]
[1748075118351,0.29786727,671.44,670.43,1.1111982]
[1748075118655,0.29786727,671.44,670.44,1.10296641]
[1748075120457,0.29786727,671.44,670.62,1.1111982]
[1748075122056,0.29786727,671.44,670.63,1.10296641]
[1748075123159,0.29786727,671.44,670.64,1.10296641]
[1748075124459,0.29786727,671.44,670.65,1.10296641]
[1748075126160,0.29786727,671.44,670.66,1.10296641]
[1748075127359,0.29786727,671.44,670.67,1.10296641]
[1748075129064,0.29786727,671.44,670.68,1.10296641]
[1748075129763,0.29786727,671.44,670.69,1.10296641]
[1748075130865,0.29786727,671.44,670.7,1.10296641]
[1748075132068,0.29786727,671.44,670.71,1.10296641]
[1748075133769,0.29786727,671.44,670.72,1.10296641]
[1748075135068,0.29786727,671.44,670.73,1.10296641]
[1748075136564,0.29786727,671.44,670.74,1.10296641]
[1748075137972,0.29786727,671.44,670.75,1.10296641]
[1748075139177,0.29786727,671.44,670.76,1.10296641]
[1748075140478,0.29786727,671.44,670.77,1.10296641]
[1748075141476,0.29786727,671.44,670.78,1.10296641]
[1748075142772,0.29786727,671.44,670.79,1.10296641]
[1748075144279,0.29786727,671.44,670.8,1.10296641]
[1748075145679,0.29786727,671.44,670.81,1.10296641]
[1748075146879,0.29786727,671.44,670.38,1.4815976]
[1748075146880,0.29786727,671.44,670.82,1.10296641]
[1748075148482,0.29786727,671.44,670.83,1.10296641]
[1748075150180,0.29786727,671.44,670.84,1.10296641]
[1748075151284,0.29786727,671.44,670.85,1.10296641]
[1748075152183,0.29786727,671.44,670.6,1.1111982]
[1748075153384,0.29786727,671.44,670.61,1.10296641]
[1748075154785,0.29786727,671.44,670.64,1.1111982]
[1748075155785,0.29786727,671.44,670.65,1.10296641]
[1748075156987,0.29786727,671.44,670.5,1.4815976]
[1748075156988,0.29786727,671.44,670.66,2.21416461]
[1748075157786,0.29786727,671.44,670.67,1.10296641]
[1748075159187,0.29786727,671.44,670.68,1.10296641]
[1748075160485,0.29786727,671.44,670.69,1.10296641]
[1748075162289,0.29786727,671.44,670.7,1.10296641]
[1748075163491,0.29786727,671.44,670.71,1.10296641]
[1748075165394,0.29786727,671.44,670.72,1.10296641]
[1748075166592,0.29786727,671.44,670.73,1.10296641]
[1748075168194,0.29786727,671.44,670.74,1.10296641]
[1748075169494,0.29786727,671.44,670.75,1.10296641]
[1748075171200,0.29786727,671.44,670.8,1.1111982]
[1748075172297,0.29786727,671.44,670.81,1.10296641]
[1748075173599,0.29786727,671.44,670.82,1.10296641]
[1748075174802,0.29786727,671.44,670.83,1.10296641]
[1748075176602,0.29786727,671.44,670.84,1.10296641]
[1748075177506,0.29786727,671.44,670.85,1.10296641]
[1748075178902,0.29786727,671.44,670.86,1.10296641]
[1748075180110,0.29786727,671.44,670.87,1.10296641]
[1748075181718,0.29786727,671.44,670.88,1.10296641]
[1748075183218,0.29786727,671.44,670.89,1.10296641]
[1748075184219,0.29786727,671.44,670.9,1.10296641]
[1748075185118,0.29786727,671.44,670.91,1.10296641]
[1748075186418,0.29786727,671.44,670.92,1.10296641]
[1748075187520,0.29786727,671.44,670.93,1.10296641]
[1748075189119,0.29786727,671.44,670.94,1.10296641]
[1748075190121,0.29786727,671.44,670.95,1.10296641]
[1748075191922,0.29786727,671.44,670.96,1.10296641]
[1748075193422,0.29786727,671.44,670.97,1.10296641]
[1748075195028,0.29786727,671.44,670.98,1.10296641]
[1748075195926,0.29786727,671.44,670.99,1.10296641]
[1748075196826,0.29786727,671.44,670.83,1.1111982]
[1748075196827,0.29786727,671.44,671.0,1.10296641]
[1748075198327,0.29786727,671.44,671.01,1.10296641]
[1748075199929,0.29786727,671.44,671.02,1.10296641]
[1748075201127,0.29786727,671.44,671.03,1.10296641]
[1748075202629,0.29786727,671.44,671.04,1.10296641]
[1748075203830,0.29786727,671.44,670.78,1.10296641]
[1748075205228,0.29786727,671.44,670.79,1.10296641]
[1748075206431,0.29786727,671.44,670.8,1.10296641]
[1748075207935,0.29786727,671.44,670.81,1.10296641]
[1748075208736,0.29786727,671.44,670.82,1.10296641]
[1748075210232,0.29786727,671.44,670.83,1.10296641]
[1748075211334,0.29786727,671.44,670.84,1.10296641]
[1748075212635,0.29786727,671.44,670.55,1.1111982]
[1748075212839,0.29786727,671.44,670.54,1.1111982]
[1748075213940,0.29786727,671.44,670.55,1.10596081]
[1748075215539,0.29786727,671.44,670.36,1.4815976]
[1748075215540,0.29786727,671.44,670.57,1.1111982]
[1748075216640,0.29786727,671.44,670.58,1.10596081]
[1748075218541,0.29786727,671.44,670.26,2.2223964]
[1748075218542,0.29786727,671.44,670.62,1.1111982]
[1748075219743,0.29786727,671.44,670.63,1.10596081]
[1748075221142,0.29786727,671.44,670.64,1.10596081]
[1748075222346,0.29786727,671.44,670.65,1.10596081]
[1748075223447,0.29786727,671.44,670.66,1.10596081]
[1748075224447,0.29786727,671.44,670.67,1.10596081]
[1748075225549,0.29786727,671.44,670.68,1.10596081]
[1748075226548,0.29786727,671.44,670.69,1.10596081]
[1748075227953,0.29786727,671.44,670.7,1.10596081]
[1748075229252,0.29786727,671.44,670.71,1.10596081]
[1748075230552,0.29786727,671.44,670.72,2.21715901]
[1748075231547,0.29786727,671.44,670.73,1.10596081]
[1748075233154,0.29786727,671.44,670.74,2.21715901]
[1748075234255,0.29786727,671.44,670.75,1.10596081]
[1748075235456,0.29786727,671.44,670.76,2.21715901]
[1748075236557,0.29786727,671.44,670.77,1.10596081]
[1748075237960,0.29786727,671.44,670.78,1.10596081]
[1748075238758,0.29786727,671.44,670.79,1.10596081]
[1748075240257,0.29786727,671.44,670.8,1.10596081]
[1748075241457,0.29786727,671.44,670.81,1.10596081]
[1748075242358,0.29786727,671.44,670.82,1.10596081]
[1748075244159,0.29786727,671.44,670.83,1.10596081]
[1748075245958,0.29786727,671.44,670.84,1.10596081]
[1748075247360,0.29786727,671.44,670.85,1.10596081]
[1748075249361,0.29786727,671.44,670.86,1.10596081]
[1748075250667,0.29786727,671.44,670.87,1.10596081]
[1748075251868,0.29786727,671.44,670.88,1.10596081]
[1748075253171,0.29786727,671.44,670.89,1.10596081]
[1748075254073,3.70132711,672.75,670.89,1.10596081]
[1748075254271,0.29729609,672.73,670.89,1.10596081]
[1748075254476,0.25912619,672.07,670.89,1.10596081]
[1748075254674,0.2975969,672.05,670.89,1.10596081]
[1748075255170,0.2975969,672.05,671.23,1.1111982]
[1748075255975,0.2975969,672.05,671.24,1.10596081]
[1748075257277,0.2975969,672.05,671.25,1.10596081]
[1748075258376,0.2975969,672.05,671.26,1.10596081]
[1748075260478,0.2975969,672.05,671.27,1.10596081]
[1748075261879,0.2975969,672.05,671.28,1.10596081]
[1748075263783,0.2975969,672.05,670.97,1.1111982]
[1748075264780,0.2975969,672.05,670.98,1.09601626]
[1748075266182,0.2975969,672.05,670.99,1.09601626]
[1748075267382,0.2975969,672.05,671.0,1.09601626]
[1748075269082,0.2975969,672.05,670.62,2.2223964]
[1748075269083,0.2975969,672.05,671.01,1.09601626]
[1748075270181,0.2975969,672.05,671.02,1.09601626]
[1748075271382,0.2975969,672.05,671.03,1.09601626]
[1748075273285,0.2975969,672.05,671.04,1.09601626]
[1748075274483,0.2975969,672.05,671.05,1.09601626]
[1748075275682,0.2975969,672.05,671.06,1.09601626]
[1748075276981,0.2975969,672.05,671.07,1.09601626]
[1748075278184,0.2975969,672.05,671.08,1.09601626]
[1748075279586,0.2975969,672.05,671.09,1.09601626]
[1748075280988,0.2975969,672.05,671.1,1.09601626]
[1748075282187,0.2975969,672.05,671.11,1.09601626]
[1748075283497,0.2975969,672.05,670.81,1.09601626]
[1748075285296,0.2975969,672.05,670.82,2.20721446]
[1748075286398,0.2975969,672.05,670.83,1.09601626]
[1748075287501,0.2975969,672.05,670.84,1.09601626]
[1748075288595,0.2975969,672.05,670.85,1.09601626]
[1748075289700,0.2975969,672.05,670.86,1.09601626]
[1748075290500,0.2975969,672.05,670.87,1.09601626]
[1748075291203,0.2975969,672.05,670.91,1.1111982]
[1748075292203,0.2975969,672.05,670.92,1.09601626]
[1748075293402,0.2975969,672.05,670.91,1.1111982]
[1748075293403,0.2975969,672.05,670.93,1.09601626]
[1748075294605,0.2975969,672.05,670.94,1.09601626]
[1748075296405,0.2975969,672.05,670.95,1.09601626]
[1748075297508,0.2975969,672.05,670.96,1.09601626]
[1748075299007,0.2975969,672.05,670.97,1.09601626]
[1748075299907,0.2975969,672.05,670.98,1.09601626]
[1748075301520,0.2975969,672.05,670.99,1.09601626]
[1748075302610,0.2975969,672.05,671.0,1.09601626]
[1748075303707,0.2975969,672.05,671.01,1.09601626]
[1748075304614,0.2975969,672.05,671.02,1.09601626]
[1748075305812,0.2975969,672.05,671.03,1.09601626]
[1748075307113,0.2975969,672.05,671.04,1.09601626]
[1748075308013,0.2975969,672.05,671.05,1.09601626]
[1748075309214,0.2975969,672.05,671.06,1.09601626]
[1748075310917,0.2975969,672.05,671.07,1.09601626]
[1748075312115,0.2975969,672.05,671.08,1.09601626]
[1748075313016,0.2975969,672.05,671.09,1.09601626]
[1748075314621,0.2975969,672.05,671.1,1.09601626]
[1748075316316,0.2975969,672.05,671.11,1.09601626]
[1748075317619,0.2975969,672.05,671.12,1.09601626]
[1748075318917,0.2975969,672.05,671.13,1.09601626]
[1748075320914,0.2975969,672.05,671.14,1.09601626]
[1748075321616,0.2975969,672.05,671.15,1.09601626]
[1748075323425,0.2975969,672.05,671.16,1.09601626]
[1748075325219,0.2975969,672.05,671.17,1.09601626]
[1748075326325,0.2975969,672.05,671.18,1.09601626]
[1748075327024,0.2975969,672.05,671.19,1.09601626]
[1748075328831,0.2975969,672.05,671.2,1.09601626]
[1748075330532,0.2975969,672.05,671.21,1.09601626]
[1748075332536,0.2975969,672.05,671.22,1.09601626]
[1748075333336,0.2975969,672.05,671.23,1.09601626]
[1748075334640,0.2975969,672.05,671.24,1.09601626]
[1748075335740,0.2975969,672.05,671.25,1.09601626]
[1748075336941,0.2975969,672.05,671.0,1.1111982]
[1748075336942,0.2975969,672.05,671.26,1.09601626]
[1748075338042,0.2975969,672.05,671.27,1.09601626]
[1748075339144,0.2975969,672.05,671.04,1.1111982]
[1748075339845,0.2975969,672.05,671.05,1.10555292]
[1748075341444,0.2975969,672.05,671.06,1.10555292]
[1748075343346,0.2975969,672.05,671.07,1.10555292]
[1748075344148,0.2975969,672.05,671.08,1.10555292]
[1748075345347,0.2975969,672.05,671.09,1.10555292]
[1748075347047,0.2975969,672.05,671.1,1.10555292]
[1748075348246,0.2975969,672.05,671.11,1.10555292]
[1748075349250,0.2975969,672.05,671.12,1.10555292]
[1748075350348,0.2975969,672.05,671.13,1.10555292]
[1748075351343,0.2975969,672.05,671.14,1.10555292]
[1748075352949,0.2975969,672.05,671.15,1.10555292]
[1748075354750,0.2975969,672.05,671.16,1.10555292]
[1748075355850,0.2975969,672.05,671.17,1.10555292]
[1748075357756,0.2975969,672.05,671.18,1.10555292]
[1748075359649,0.2975969,672.05,671.19,1.10555292]
[1748075360556,0.2975969,672.05,671.2,1.10555292]
[1748075361755,0.2975969,672.05,671.21,1.10555292]
[1748075363157,0.2975969,672.05,671.22,1.10555292]
[1748075365157,0.2975969,672.05,671.23,1.10555292]
[1748075366457,0.2975969,672.05,671.24,1.10555292]
[1748075367359,0.2975969,672.05,671.25,1.10555292]
[1748075368761,0.2975969,672.05,671.26,1.10555292]
[1748075369860,0.2975969,672.05,671.27,1.10555292]
[1748075371259,0.2975969,672.05,671.28,1.10555292]
[1748075372465,0.2975969,672.05,671.29,1.10555292]
[1748075373764,0.2975969,672.05,671.3,1.10555292]
[1748075374664,0.2975969,672.05,671.31,1.10555292]
[1748075375963,0.2975969,672.05,671.32,1.10555292]
[1748075377264,0.2975969,672.05,671.33,1.10555292]
[1748075378766,0.2975969,672.05,671.34,1.10555292]
[1748075379761,0.2975969,672.05,671.35,1.10555292]
[1748075381168,0.2975969,672.05,671.36,1.10555292]
[1748075382770,0.2975969,672.05,671.37,1.10555292]
[1748075383869,0.2975969,672.05,671.38,1.10555292]
[1748075384869,0.2975969,672.05,671.1,1.1111982]
[1748075386471,0.2975969,672.05,671.12,1.1111982]
[1748075387671,0.2975969,672.05,671.13,1.10469161]
[1748075389372,0.2975969,672.05,671.14,1.10469161]
[1748075390474,0.2975969,672.05,671.15,1.10469161]
[1748075391578,0.2975969,672.05,671.16,1.10469161]
[1748075392578,0.2975969,672.05,671.17,1.10469161]
[1748075393981,0.2975969,672.05,671.18,1.10469161]
[1748075394780,0.2975969,672.05,671.19,1.10469161]
[1748075395981,0.2975969,672.05,671.2,1.10469161]
[1748075397481,0.2975969,672.05,671.21,1.10469161]
[1748075398383,0.2975969,672.05,671.22,1.10469161]
[1748075399383,0.2975969,672.05,671.12,1.1111982]
[1748075399384,0.2975969,672.05,671.23,1.10469161]
[1748075401588,0.25908182,671.91,671.25,1.1111982]
[1748075401887,0.29766334,671.9,671.25,1.1111982]
[1748075402890,0.29766334,671.9,671.26,1.10469161]
[1748075404192,0.29766334,671.9,670.91,1.1111982]
[1748075405992,0.29766334,671.9,670.92,1.10465666]
[1748075406986,0.29766334,671.9,670.93,1.10465666]
[1748075408791,0.29766334,671.9,670.94,1.10465666]
[1748075410294,0.29766334,671.9,670.95,1.10465666]
[1748075411896,0.29766334,671.9,670.96,1.10465666]
[1748075413397,0.29766334,671.9,670.75,1.1111982]
[1748075413595,0.29766334,671.9,670.58,1.1111982]
[1748075415097,0.29766334,671.9,670.59,1.10106154]
[1748075416897,0.29766334,671.9,670.62,1.1111982]
[1748075418101,0.29766334,671.9,670.63,1.10106154]
[1748075419501,0.29766334,671.9,670.64,1.10106154]
[1748075420807,0.29766334,671.9,670.65,1.10106154]
[1748075422311,0.29766334,671.9,670.66,1.10106154]
[1748075423812,0.29766334,671.9,670.67,1.10106154]
[1748075425312,0.29766334,671.9,670.68,1.10106154]
[1748075426513,0.29766334,671.9,670.69,1.10106154]
[1748075428613,0.29766334,671.9,670.7,1.10106154]
[1748075430013,0.29766334,671.9,670.71,1.10106154]
[1748075431413,0.29766334,671.9,670.72,1.10106154]
[1748075432610,0.29766334,671.9,670.54,1.1111982]
[1748075433516,0.29766334,671.9,670.55,1.09638005]
[1748075434414,0.29766334,671.9,670.56,1.09638005]
[1748075435718,0.29766334,671.9,670.57,1.09638005]
[1748075438014,0.29766334,671.9,670.58,1.09638005]
[1748075439319,0.29766334,671.9,670.59,1.09638005]
[1748075440320,0.29766334,671.9,670.6,1.09638005]
[1748075441623,0.29766334,671.9,670.61,1.09638005]
[1748075442623,0.29766334,671.9,670.62,1.09638005]
[1748075444321,0.29766334,671.9,670.38,1.1111982]
[1748075445819,0.29766334,671.9,670.39,1.09385871]
[1748075447326,0.29766334,671.9,670.4,1.09385871]
[1748075448927,0.29766334,671.9,670.41,1.09385871]
[1748075450429,0.29766334,671.9,670.42,1.09385871]
[1748075452029,0.29766334,671.9,670.43,1.09385871]
[1748075453231,0.29766334,671.9,670.44,1.09385871]
[1748075454732,0.29766334,671.9,670.45,1.09385871]
[1748075456533,0.29766334,671.9,670.46,1.09385871]
[1748075457933,0.29766334,671.9,670.47,1.09385871]
[1748075460235,0.29766334,671.9,670.48,1.09385871]
[1748075461239,0.29766334,671.9,670.49,1.09385871]
[1748075463038,0.29766334,671.9,670.43,1.1111982]
[1748075463039,0.29766334,671.9,670.5,1.09385871]
[1748075464336,0.29766334,671.9,670.51,1.09385871]
[1748075465340,0.29766334,671.9,670.52,1.09385871]
[1748075466541,0.29766334,671.9,670.53,1.09385871]
[1748075468041,0.29766334,671.9,670.54,1.09385871]